Cogmind - Beta 14 @@@ ROGUE MODE // 2025.04.26 @ 16:54:43 Player: JB Result: Destroyed by as-96859 with Assembled Blade Performance ------------- Evolutions (0) 0 Regions Visited (4) 800 Robots Destroyed (15) 75 Value Destroyed (337) 337 Prototype IDs (1) 20 Alien Tech Used (0) 0 Bonus (0) 0 TOTAL SCORE: 1232 Bonus ------- None Cogmind --------- Core Integrity 0/250 Matter 224/300 Energy 84/100 System Corruption 0% Temperature Cool (0) Movement Core (50) Location -9/Mines Parts ------- > --- POWER (1) -------- (None) > --- PROPULSION (2) --- (None) > --- UTILITY (2) ------ (None) > --- WEAPON (2) ------- (None) > --- INVENTORY (5) ---- Ion Engine Large Storage Unit Experimental Sensor Array Peak State ------------ > --- POWER ------------ Light Nuclear Core > --- PROPULSION ------- Light Treads Light Treads > --- UTILITY ---------- Small Storage Unit Terrain Scanner > --- WEAPON ----------- Assault Rifle Light Cannon > --- INVENTORY -------- Ion Engine Light Ion Engine Compact Wheel Light Armor Plating Light Assault Rifle [Rating: 9] Favorites ----------- Power Light Ion Engine Engine Light Ion Engine Power Core Light Nuclear Core Propulsion Light Treads Treads Light Treads Wheel Compact Wheel Utility Terrain Scanner Device Terrain Scanner Storage Small Storage Unit Protection Light Armor Plating Weapon Assault Rifle Ballistic Gun Assault Rifle Ballistic Cannon Light Cannon Launcher Rocket Launcher Build | -11 -10 -10 -10 -9 ------- Run | Yrd Mat Min Exi Min Slots Evolved . | . . . . . Power . | . . . . . Propulsion . | . . . . . Utility . | . . . . . Weapon . | . . . . . Parts Attached 17 | 6 4 5 . 2 Power 3 | 1 1 1 . . Engine 2 | 1 . 1 . . Core 1 | . 1 . . . Reactor . | . . . . . Propulsion 3 | 2 . 1 . . Treads 2 | 2 . . . . Leg . | . . . . . Wheel 1 | . . 1 . . Hover . | . . . . . Flight . | . . . . . Utility 5 | 1 2 2 . . Device 2 | . 1 1 . . Storage 2 | 1 1 . . . Processor . | . . . . . Hackware . | . . . . . Protection 1 | . . 1 . . Artifact . | . . . . . Weapon 6 | 2 1 1 . 2 Energy Gun . | . . . . . Energy Cannon . | . . . . . Ballistic Gun 4 | 2 . 1 . 1 Ballistic Cannon 1 | . 1 . . . Launcher 1 | . . . . 1 Special Weapon . | . . . . . Impact Weapon . | . . . . . Slashing Weapon . | . . . . . Piercing Weapon . | . . . . . Special Melee Weapon . | . . . . . Unidentified Prototypes 1 | . . 1 . . Parts Lost 8 | . . 6 . 2 Power 1 | . . 1 . . Propulsion 3 | . . 3 . . Utility . | . . . . . Weapon 4 | . . 2 . 2 Highest Loss Streak 6 | . . 6 . 2 To Critical Strikes . | . . . . . Average Slot Usage (%) 43 | . 97 26 . 2 Engine 3 | . 9 1 . . Core 2 | . 4 2 . . Treads 11 | . 28 5 . . Device 5 | . 11 2 . . Storage 6 | . 14 4 . . Ballistic Gun 9 | . 22 4 . . Ballistic Cannon 2 | . 5 2 . . Peak Build Rating 9 | 6 9 9 1 3 Average Rating 3 | 4 7 2 1 1 On Entrance 3 | . 6 9 1 1 Naked Turns 648 | . . 363 206 79 Heaviest Build 31 | 11 31 31 . 4 Greatest Support 40 | 40 40 40 3 3 Greatest Overweight (x) 9 | . . 9 . 1 Average Overweight (x) . | . . . . . Largest Inventory Capacity 15 | 8 15 15 5 5 Average Capacity 7 | 6 8 8 5 5 Most Carried 5 | 2 5 5 5 5 Average Carried 4 | 1 3 4 5 4 Final Capacity 15 | 8 15 5 5 5 Final Carried 5 | 2 5 5 5 3 Class Distribution -------------------- 100% | Mutant Dominant Class ---------------- Mutant | -10/Materials Mutant | -10/Mines Mutant | -10/Exiles Mutant | -9/Mines Resources | -11 -10 -10 -10 -9 ----------- Run | Yrd Mat Min Exi Min Matter Collected 561 | 123 245 193 . . Remotely . | . . . . . Salvage Created 409 | . 258 125 . 26 Parts 24 | . 21 3 . . Haulers Intercepted . | . . . . . Recyclers Shooed 1 | . . 1 . . Parts Field Recycled . | . . . . . Retrieved Matter . | . . . . . Parts Self-Destructed . | . . . . . Prevented . | . . . . . Kills | -11 -10 -10 -10 -9 ------- Run | Yrd Mat Min Exi Min Combat Hostiles Destroyed 16 | . 9 3 . 4 Guns 9 | . 7 2 . . Cannons 3 | . 2 1 . . AOE 4 | . . . . 4 Classes Destroyed 6 | . 5 . . 1 Builder 1 | . 1 . . . Mechanic 1 | . 1 . . . Operator 1 | . 1 . . . Swarmer 6 | . 6 . . . Grunt 6 | . 3 3 . . Assembled 4 | . . . . 4 Best Kill Streak 4 | . 4 2 . 4 Combat Bots Only 4 | . 3 2 . 4 Max Kills in Single Turn 2 | . 2 1 . 2 Gunslinging 1 | . 1 . . . Exploded 2 | . . . . 2 Melee . | . . . . . Uniques/NPCs Destroyed . | . . . . . Combat | -11 -10 -10 -10 -9 -------- Run | Yrd Mat Min Exi Min Hostile Shots Fired 113 | . 58 39 . 16 Missed 28 | . 14 7 . 7 Damage Taken 1144 | . 465 439 . 240 Core 262 | . 45 54 . 163 Absorbed by Shields . | . . . . . Core Remaining (%) 100 | 100 . . . . Volleys Fired 64 | . 30 28 . 6 Largest 2 | . 2 2 . 1 Hottest 55 | . 55 55 . 33 Shots Fired 103 | . 60 37 . 6 Gun 75 | . 47 28 . . Cannon 22 | . 13 9 . . Launcher 6 | . . . . 6 Special . | . . . . . Kinetic 97 | . 60 37 . . Thermal . | . . . . . Explosive 6 | . . . . 6 Electromagnetic . | . . . . . Robot Hit Streak 8 | . 8 5 . 3 Robot Miss Streak 4 | . 4 2 . 1 Penetration Max . | . . . . . Secondary Targets 1 | . 1 . . . Max Gunslinging Chain 1 | . 1 . . . Shots Hit Robots 62 | . 34 26 . 2 Core Hits 33 | . 18 9 . 6 Critical Kills . | . . . . . Critical Parts Destroyed . | . . . . . Critical Strikes . | . . . . . Melee Attacks . | . . . . . Impact . | . . . . . Slashing . | . . . . . Piercing . | . . . . . Sneak Attacks . | . . . . . Combat Hostiles . | . . . . . Follow-up Attacks . | . . . . . Damage Inflicted 1111 | . 465 313 . 333 Guns 493 | . 307 186 . . Cannons 285 | . 158 127 . . Explosions 333 | . . . . 333 Melee . | . . . . . Ramming . | . . . . . Kinetic 778 | . 465 313 . . Thermal . | . . . . . Explosive 333 | . . . . 333 Electromagnetic . | . . . . . Impact . | . . . . . Slashing . | . . . . . Piercing . | . . . . . Highest Corruption . | . . . . . Average Corruption . | . . . . . Corruption Purged . | . . . . . Corruption Blocked . | . . . . . Overload Shots . | . . . . . Overflow Damage 10 | . . . . 10 Projectiles . | . . . . . Explosions 10 | . . . . 10 Melee . | . . . . . Knockbacks 4 | . 2 2 . . Impact . | . . . . . Kinetic 4 | . 2 2 . . Secondary . | . . . . . Self-Inflicted Damage 48 | . . . . 48 Shots 2 | . . . . 2 Rammed . | . . . . . Targets Rammed . | . . . . . Kicked . | . . . . . Crushed . | . . . . . Highest Temperature 75 | . 12 75 . . Average Temperature 23 | . 7 28 . . Received Heat Transfer 432 | . 153 279 . . Siege Activations . | . . . . . Robots Corrupted . | . . . . . Combat Hostiles . | . . . . . Parts Fried . | . . . . . Impact Corruptions . | . . . . . Robots Melted . | . . . . . Combat Hostiles . | . . . . . Parts Melted . | . . . . . Heat Transferred . | . . . . . Parts Sabotaged . | . . . . . Parts Stolen . | . . . . . Parts Stripped . | . . . . . Power Chain Reactions . | . . . . . Alert | -11 -10 -10 -10 -9 ------- Run | Yrd Mat Min Exi Min Peak Influence 362 | . 362 191 . 41 Initial 141 | . . 141 . . Average 130 | . 177 131 . 10 Maximum Alert Level 1 | . 1 . . . Low Security (%) 81 | 100 50 100 . 100 Level 1 18 | . 50 . . . Level 2 . | . . . . . Level 3 . | . . . . . Level 4 . | . . . . . Level 5 . | . . . . . High Security . | . . . . . Max Security . | . . . . . Squads Dispatched 1 | . 1 . . . Investigation . | . . . . . Extermination . | . . . . . Reinforcement 1 | . 1 . . . Assault . | . . . . . Garrison . | . . . . . Intercept . | . . . . . Searches Triggered . | . . . . . Construction Impeded . | . . . . . Haulers Reinforced . | . . . . . Active Scanning Responses . | . . . . . Cargo Convoy Interrupts . | . . . . . Stealth | -11 -10 -10 -10 -9 --------- Run | Yrd Mat Min Exi Min Distress Signals 4 | . 4 . . . Communications Jammed . | . . . . . Distress Signals . | . . . . . Times Spotted 36 | . 15 6 . 15 Peak Tracking Total 8 | . 7 2 . 8 Tactical Retreats 5 | . 3 1 . 1 Traps | -11 -10 -10 -10 -9 ------- Run | Yrd Mat Min Exi Min Traps Triggered . | . . . . . Indirectly . | . . . . . Trap Hack Attempts . | . . . . . Triggered . | . . . . . Disarmed . | . . . . . Reprogrammed . | . . . . . Reused . | . . . . . Traps Extracted . | . . . . . Installed . | . . . . . Triggered . | . . . . . Machines | -11 -10 -10 -10 -9 ---------- Run | Yrd Mat Min Exi Min Machines Disabled . | . . . . . Max in Single Turn . | . . . . . Machines Repaired . | . . . . . Machines Dismantled . | . . . . . Machines Sabotaged . | . . . . . Overloaded Fab Kills . | . . . . . Hacking | -11 -10 -10 -10 -9 --------- Run | Yrd Mat Min Exi Min Machines Accessed 5 | . 3 . 2 . Terminals 3 | . 3 . . . Fabricators . | . . . . . Repair Stations . | . . . . . Recycling Units . | . . . . . Scanalyzers . | . . . . . Garrison Access . | . . . . . Total Hacks 11 | . 9 . 2 . Successful 6 | . 4 . 2 . Failed 5 | . 5 . . . Catastrophic . | . . . . . Database Lockouts . | . . . . . Manual 10 | . 9 . 1 . Terminals 9 | . 9 . . . Fabricators . | . . . . . Repair Stations . | . . . . . Recycling Units . | . . . . . Scanalyzers . | . . . . . Garrison Access . | . . . . . Terminal Hacks 3 | . 1 . 2 . Record 2 | . . . 2 . Branch Access Points 1 | . 1 . . . Fabricator Hacks . | . . . . . Repair Station Hacks . | . . . . . Recycling Unit Hacks . | . . . . . Scanalyzer . | . . . . . Garrison Access Hacks . | . . . . . Unauthorized Hacks 3 | . 3 . . . Terminals 3 | . 3 . . . Botnet 2 | . 2 . . . Operators 1 | . 1 . . . Fabricators . | . . . . . Repair Stations . | . . . . . Recycling Units . | . . . . . Scanalyzers . | . . . . . Garrison Access . | . . . . . Data Cores Recovered . | . . . . . Used . | . . . . . Hacking Detections 1 | . 1 . . . Full Trace Events . | . . . . . Feedback Events . | . . . . . Feedback Blocked . | . . . . . Robot Schematics Acquired . | . . . . . Robots Built . | . . . . . Authchips . | . . . . . Time . | . . . . . Total Robot Build Rating . | . . . . . Part Schematics Acquired . | . . . . . Parts Built . | . . . . . Authchips . | . . . . . Time . | . . . . . Total Part Build Rating . | . . . . . Parts Repaired . | . . . . . Time . | . . . . . Parts Recycled . | . . . . . Recycled Matter . | . . . . . Retrieved Matter . | . . . . . Retrieved Components . | . . . . . Parts Scanalyzed . | . . . . . Part Schematics Acquired . | . . . . . Parts Damaged . | . . . . . Bothacking | -11 -10 -10 -10 -9 ------------ Run | Yrd Mat Min Exi Min Used RIF Installer . | . . . . . Robots Hacked . | . . . . . Non-combat . | . . . . . Combat . | . . . . . Robot Hacks Applied . | . . . . . Relay Couplers Released . | . . . . . Fabnet Peak Effective % . | . . . . . Robots Rewired . | . . . . . Allies Hacked . | . . . . . Hacks Repelled . | . . . . . Allies | -11 -10 -10 -10 -9 -------- Run | Yrd Mat Min Exi Min Total Allies . | . . . . . Largest Group . | . . . . . Highest-Rated Group . | . . . . . Highest-Rated Ally . | . . . . . Total Orders . | . . . . . Ally Attacks . | . . . . . Total Damage . | . . . . . Kills . | . . . . . Allies Corrupted . | . . . . . Allies Melted . | . . . . . Intel | -11 -10 -10 -10 -9 ------- Run | Yrd Mat Min Exi Min Robot Analysis Total . | . . . . . Derelict Logs Recovered 1 | . . . . 1 Drone Launches . | . . . . . Drone Recoveries . | . . . . . Exploration | -11 -10 -10 -10 -9 ------------- Run | Yrd Mat Min Exi Min Turns Passed 1298 | 58 398 536 206 100 Spaces Moved 1295 | 32 182 595 413 73 Core 1041 | 3 . 552 413 73 Treads 254 | 29 182 43 . . Legs . | . . . . . Wheels . | . . . . . Hover . | . . . . . Flight . | . . . . . Fastest Speed 50 | 50 160 50 50 50 Average Speed 74 | 149 160 62 50 56 Slowest Speed 500 | 160 160 500 50 100 Overloaded Moves . | . . . . . Propulsion Burnouts . | . . . . . Robots Hopped . | . . . . . Cave-ins Triggered . | . . . . . Exploration Rate (%) 47 | 3 36 96 81 19 Regions Visited 4 Branch Regions 3 Pre-discovered Areas 1 | . . 1 . . Known Exits Taken 1 | . 1 . . . Unknown Exits Taken 3 | 1 . 1 1 . Scrap Searched 1 | . . 1 . . Spaces Dug . | . . . . . Terrain Destroyed 59 | . . . . 59 Melee . | . . . . . Projectile . | . . . . . AOE 59 | . . . . 59 Terrain Rammed . | . . . . . Walls Destroyed . | . . . . . Machines Disabled . | . . . . . Actions | -11 -10 -10 -10 -9 --------- Run | Yrd Mat Min Exi Min Total 1535 | 39 231 727 412 126 Wait 148 | . 13 92 . 43 Move 1291 | 31 181 594 412 73 Hop . | . . . . . Pick Up 6 | 2 2 1 . 1 Fast Attach 8 | 6 1 1 . . Attach 5 | . . 3 . 2 Detach 4 | . . 4 . . Swap 4 | . 3 1 . . Drop 5 | . 1 3 . 1 Fire 64 | . 30 28 . 6 Melee . | . . . . . Ram . | . . . . . Kick . | . . . . . Crush . | . . . . . Escape Stasis . | . . . . . Rewire . | . . . . . Trap . | . . . . . Miscellaneous . | . . . . . Route ------- -11/Scrapyard -10/Materials (discovered 4 exits: [*Mat x2] / *Min x2) -10/Mines (discovered 3 exits: [*Mat x2] / *Exi) -10/Exiles -9/Mines History --------- Turn | Location | Event 35 | -11/Scrapyard | Discovered new exit (range 14) 59 | -11/Scrapyard | Entered Materials 186 | -10/Materials | Discovered new exit (range 3) 326 | -10/Materials | Build established: Mutant 428 | -10/Materials | Discovered new exit (range 15) 435 | -10/Materials | Discovered new exit (range 12) 436 | -10/Materials | Identified exit to Mines 457 | -10/Materials | Entered Mines 609 | -10/Mines | Lost 6 parts (1p3n2w) 662 | -10/Mines | Found a damaged Exp. Sensor Array with a note attached 663 | -10/Mines | Found Prototype Device 663 | -10/Mines | Identified Exp. Sensor Array 715 | -10/Mines | Found a hidden stash of uninstalled traps 733 | -10/Mines | YI-UF0 nonchalantly dropped a Grenade Launcher on the ground 852 | -10/Mines | Discovered new exit (range 6) 916 | -10/Mines | Discovered new exit (range 9) 918 | -10/Mines | Learned location of Storage (-7) 991 | -10/Mines | Deemed a non-threat by the Exiles lab entrance 991 | -10/Mines | Discovered new exit (range 5) 993 | -10/Mines | Entered Exiles 993 | -10/Exiles | Found Exiles lab abandoned 1194 | -10/Exiles | Discovered new exit (range 14) 1199 | -10/Exiles | Entered Mines 1200 | -9/Mines | Assembled infested the area 1202 | -9/Mines | Learned 2 Materials zone layouts 1211 | -9/Mines | Received a Rocket Launcher from a helpful Derelict 1272 | -9/Mines | Core integrity fell below 50% 1289 | -9/Mines | Core integrity fell below 20% 1299 | -9/Mines | Destroyed by as-96859 with Assembled Blade Last Messages --------------- say!" 01211_ BL-R53(g): "Would you like a rocket launcher? I know I would if I were you, so I'm going to lend you mine." 01211_ BL-R53(g) slips back into the shadows. 01212_ Dropped Terrain Scanner. 01212_ Acquired Rocket Launcher. 01269_ as-24074 destroyed. 01269_ as-98817 destroyed. 01269_ Destroyed Asb. F-torch. 01271_ The unstable cave ceiling collapses. 01271_ as-62281 destroyed. 01274_ as-24746 destroyed. 01276_ as-86725 destroyed. 01282_ The unstable cave ceiling collapses. 01288_ Rocket Launcher destroyed. 01288_ Destroyed Rocket Launcher. 01292_ D-53 Grenadier destroyed. 01293_ The unstable cave ceiling collapses. 01299_ Lgt. Assault Rifle destroyed. Map ----- +----------------------------------------------------+ | | | | | | | | | | | | | | | | | | | | | | | | | ?????????????????????????????????????????????????? | | ?????????????????????????????????????????????????? | | ?????????????????????????????????#####???????????? | | ???????????????????????????????### ##??????????? | | ???????????????????????????????# #??????????? | | ?????????????????????????####### " #??????????? | | ????????????????????????## ## #########???? | | ???????????????????????## # ## ## ##??? | | ???????????????????????# # ###? | | ???????????????????????# # ## | | ???????????????????????## a # # # | | ????????????????????????# ## ### ### | | ????????????????????????#a## #?## | | ????????????????????????#@# # ?## # | | ????????????????????????# # ??#### | | ????????????????????????# # ????? | | ???????????????????# ####a ???? | | ???????????????????# # ??? | | ???????????????????###### # #### ?? | | ??????????????########### #??# # ??? | | ??????????????# #####??# # ??? | | ??????????????# #??????# # ??? | | ??????????????# """ #??????###?? ??? | | ??????????????? """ ! #??????????? %????? | | ???????????????? """ %= #??????????? ?????? | | ??????????????? #??????????????????? | | ??????????????# #??????????????????? | | ??????????????# #??????????????????? | | ??????????????#################??????????????????? | | ?????????????????????????????????????????????????? | | ?????????????????????????????????????????????????? | | ?????????????????????????????????????????????????? | | ?????????????????????????????????????????????????? | | ?????????????????????????????????????????????????? | | ?????????????????????????????????????????????????? | | ?????????????????????????????????????????????????? | | ?????????????????????????????????????????????????? | | ?????????????????????????????????????????????????? | +----------------------------------------------------+ Best States ------------- Heat Dissipation 25 Energy Generation 14 Energy Capacity 250 Matter Stores 300 Matter Capacity 300 Sight Range 16 Terrain Scan Range 14 Terrain Scan Density 10 Armor Coverage 150 Evasion (%) 50 Recoil Reduction 2 Item Schematics ----------------- None Robot Schematics ------------------ None Fabricated ------------ Nothing Alien Tech Used ----------------- None Achievements -------------- None Challenges ------------ None Game ------ Seed DiametricWeaponInverter Manual? 0 Play Time 00:11:08 Cumulative 62.5 hours Start 2025.04.26 @ 16:45:08 End 2025.04.26 @ 16:54:43 Sessions 1 Manual Loads 0 Difficulty Rogue Special Mode None Game No. 132 Rogue 84 Adventurer 48 Explorer 0 Win Type - Total 0 Types 0/0/0/0/0/0/0/0/0 Lore% 20 Gallery% 42 Achievement% 37 Wizard Run 0 Options --------- Layout 1 ASCII 0 Keyboard 0 Movement Mouse Keybinds 0 Fullscreen 1 Font 32/SmallcapsGlow Map View 50x35 Zoom Use 0% Tactical HUD 1 Map Filters NONE Filters NONE Steam 1 RUN: c8881c6a-4596-48d4-b770-757cdc672453